fUSD/lending_fUSD_20260507
["ID","MTS","AMOUNT","RATE_DAILY","PERIOD"]
[421790275,1778160641000,-500.0,0.00037165,30]
[421790278,1778160641000,-2345.0,0.00037165,30]
[421790273,1778160641000,-500.0,0.00037165,30]
[421790274,1778160641000,-151.0,0.00037165,30]
[421790277,1778160641000,-321.04705582,0.00037165,30]
[421790276,1778160641000,-151.0,0.00037165,30]
[421790269,1778160641000,-151.0,0.00037165,30]
[421790280,1778160641000,-705.99609702,0.00037165,30]
[421790290,1778160641000,-189.57680101,0.00037165,30]
[421790265,1778160641000,-500.0,0.00037165,30]
[421790311,1778160642000,-26403.79226853,0.00037185,2]
[421790310,1778160642000,-1134195.36168874,0.00037185,2]
[421790312,1778160642000,-380.52932165,0.00037185,2]
[421790309,1778160642000,-1219131.59981718,0.00037185,2]
[421790315,1778160642000,-1108.82,0.00037185,2]
[421790316,1778160642000,-650.4944148,0.00037185,2]
[421790314,1778160642000,-406.58,0.00032877,2]
[421790313,1778160642000,-261.6355209,0.00037185,2]
[421790327,1778160643000,-160.65836608,0.00023791,7]
[421790328,1778160643000,-160.65836608,0.00023827,7]
[421790334,1778160643000,-499187.92199545,0.00037185,2]
[421790329,1778160643000,-300.0,0.0002652,2]
[421790332,1778160643000,-852.0,0.00037165,30]
[421790330,1778160643000,-516.54585275,0.00035516,2]
[421790331,1778160643000,-989.91862549,0.00036069,2]
[421790333,1778160643000,-765709.20738376,0.00037185,2]
[421790348,1778160645000,-504.0,0.00030913,6]
[421790342,1778160645000,-504.0,0.00027137,2]
[421790343,1778160645000,-504.0,0.00027766,2]
[421790341,1778160645000,-177.529636,0.0002496,14]
[421790345,1778160645000,-504.0,0.00029025,4]
[421790344,1778160645000,-504.0,0.00028396,3]
[421790351,1778160645000,-504.0,0.00032801,8]
[421790349,1778160645000,-504.0,0.00031542,6]
[421790353,1778160645000,-109.47538633,0.00036069,2]
[421790350,1778160645000,-504.0,0.00032172,7]
[421790346,1778160645000,-504.0,0.00029654,4]
[421790347,1778160645000,-504.0,0.00030284,5]
[421790354,1778160645000,-1917.22461367,0.00037185,2]
[421790352,1778160645000,-550.470364,0.00036069,2]
[421790360,1778160646000,-37827.73231545,0.00037185,2]
[421790358,1778160646000,-504.0,0.0003406,9]
[421790359,1778160646000,-2527.69358994,0.00037185,2]
[421790357,1778160646000,-125429.1791147,0.00037185,2]
[421790355,1778160646000,-299.88368891,0.0003343,8]
[421790356,1778160646000,-204.11631109,0.0003343,8]
[421790366,1778160664000,5000.0,0.00026088,120]
[421790367,1778160667000,300.0,0.00019968,30]
[421790376,1778161129000,350.74,0.00028491,120]
[421790375,1778161129000,350.74,0.00025901,120]
[421790401,1778161831000,-14417.00405243,0.00013498,2]
[421790396,1778161831000,-200.0,0.00012917,2]
[421790397,1778161831000,-1257.921,0.00013325,2]
[421790402,1778161831000,-2080.17592889,0.00013589,2]
[421790403,1778161831000,-150.0,0.00013595,2]
[421790399,1778161831000,-300.0,0.00013497,2]
[421790404,1778161831000,-700.0,0.000136,4]
[421790400,1778161831000,-1200.0,0.00013497,2]
[421790398,1778161831000,-300.0,0.00013497,2]
[421790405,1778161831000,-500.0,0.00013698,2]
[421790407,1778161831000,-500.0,0.00013698,2]
[421790408,1778161831000,-500.0,0.00013698,2]
[421790411,1778161831000,-500.0,0.00013698,2]
[421790410,1778161831000,-500.0,0.00013698,2]
[421790412,1778161831000,-500.0,0.00013698,2]
[421790409,1778161831000,-500.0,0.00013698,2]
[421790406,1778161831000,-500.0,0.00013698,2]
[421790413,1778161831000,-500.0,0.00013698,2]
[421790454,1778161832000,-2200.0,0.000138,5]
[421790460,1778161832000,-2157.14243826,0.00014137,2]
[421790459,1778161832000,-250.0,0.00014,2]
[421790449,1778161832000,-500.0,0.00013698,2]
[421790445,1778161832000,-500.0,0.00013698,2]
[421790444,1778161832000,-500.0,0.00013698,2]
[421790447,1778161832000,-500.0,0.00013698,2]
[421790461,1778161832000,-250.0,0.00014209,2]
[421790450,1778161832000,-500.0,0.00013698,2]
[421790448,1778161832000,-500.0,0.00013698,2]
[421790453,1778161832000,-420.0,0.0001375,3]
[421790452,1778161832000,-1500.0,0.000137,5]
[421790458,1778161832000,-150.0,0.00013986,2]
[421790457,1778161832000,-161.81,0.00013986,2]
[421790462,1778161832000,-397.12423556,0.00014209,2]
[421790455,1778161832000,-3000.0,0.000139,5]
[421790464,1778161832000,-300.0,0.00014209,2]
[421790463,1778161832000,-300.0,0.00014209,2]
[421790465,1778161832000,-300.0,0.00014209,2]
[421790467,1778161832000,-300.0,0.00014209,2]
[421790478,1778161832000,-500.0,0.00014605,2]
[421790477,1778161832000,-500.0,0.00014605,2]
[421790468,1778161832000,-500.0,0.00014209,2]
[421790470,1778161832000,-500.0,0.00014605,2]
[421790472,1778161832000,-500.0,0.00014605,2]
[421790475,1778161832000,-501.76596491,0.00014605,2]
[421790451,1778161832000,-499.57167174,0.00013698,2]
[421790456,1778161832000,-1000.0,0.000139,2]
[421790446,1778161832000,-500.0,0.00013698,2]
[421790424,1778161832000,-500.0,0.00013698,2]
[421790442,1778161832000,-500.0,0.00013698,2]
[421790417,1778161832000,-500.0,0.00013698,2]
[421790416,1778161832000,-309.013254,0.00013698,2]
[421790415,1778161832000,-500.0,0.00013698,2]
[421790418,1778161832000,-500.0,0.00013698,2]
[421790420,1778161832000,-500.0,0.00013698,2]
[421790427,1778161832000,-500.0,0.00013698,2]
[421790421,1778161832000,-500.0,0.00013698,2]
[421790428,1778161832000,-526.18836347,0.00013698,2]
[421790426,1778161832000,-500.0,0.00013698,2]
[421790423,1778161832000,-500.0,0.00013698,2]
[421790422,1778161832000,-500.0,0.00013698,2]
[421790425,1778161832000,-150.40022105,0.00013698,2]
[421790471,1778161832000,-500.0,0.00014605,2]
[421790419,1778161832000,-500.0,0.00013698,2]
[421790430,1778161832000,-500.0,0.00013698,2]
[421790440,1778161832000,-500.0,0.00013698,2]
[421790429,1778161832000,-507.67391504,0.00013698,2]
[421790431,1778161832000,-500.0,0.00013698,2]
[421790439,1778161832000,-508.37034909,0.00013698,2]
[421790435,1778161832000,-500.0,0.00013698,2]
[421790437,1778161832000,-500.0,0.00013698,2]
[421790432,1778161832000,-500.0,0.00013698,2]
[421790434,1778161832000,-500.0,0.00013698,2]
[421790433,1778161832000,-500.0,0.00013698,2]
[421790436,1778161832000,-500.0,0.00013698,2]
[421790438,1778161832000,-500.0,0.00013698,2]
[421790441,1778161832000,-500.0,0.00013698,2]
[421790443,1778161832000,-500.0,0.00013698,2]
[421790476,1778161832000,-500.0,0.00014605,2]
[421790414,1778161832000,-500.0,0.00013698,2]
[421790466,1778161832000,-300.0,0.00014209,2]
[421790507,1778161832000,-608.0,0.00014605,2]
[421790504,1778161832000,-608.0,0.00014605,2]
[421790512,1778161832000,-608.0,0.00014605,2]
[421790508,1778161832000,-608.0,0.00014605,2]
[421790509,1778161832000,-608.0,0.00014605,2]
[421790506,1778161832000,-608.0,0.00014605,2]
[421790511,1778161832000,-608.0,0.00014605,2]
[421790510,1778161832000,-608.0,0.00014605,2]
[421790518,1778161832000,-608.0,0.00014605,2]
[421790526,1778161832000,-2319.72410669,0.00015233,2]
[421790527,1778161832000,-501.03097108,0.00015244,2]
[421790519,1778161832000,-608.0,0.00014605,2]
[421790517,1778161832000,-608.0,0.00014605,2]
[421790520,1778161832000,-608.0,0.00014605,2]
[421790528,1778161832000,-500.0,0.00015574,2]
[421790521,1778161832000,-610.27538277,0.00014605,2]
[421790523,1778161832000,-255.0,0.00014709,2]
[421790525,1778161832000,-1680.0,0.00014847,2]
[421790522,1778161832000,-2236.95670848,0.00014685,2]
[421790524,1778161832000,-420.0,0.00014794,2]
[421790531,1778161832000,-303.08104812,0.00015821,2]
[421790532,1778161832000,-433.0,0.00015919,2]
[421790534,1778161832000,-10000.01,0.00016096,2]
[421790530,1778161832000,-2405.55389864,0.00015781,2]
[421790533,1778161832000,-300.0,0.00016,2]
[421790535,1778161832000,-266.56,0.00016112,2]
[421790536,1778161832000,-14417.00405242,0.00016134,2]
[421790516,1778161832000,-608.0,0.00014605,2]
[421790515,1778161832000,-608.0,0.00014605,2]
[421790529,1778161832000,-157.99,0.0001574,2]
[421790514,1778161832000,-608.0,0.00014605,2]
[421790513,1778161832000,-608.0,0.00014605,2]
[421790474,1778161832000,-500.0,0.00014605,2]
[421790469,1778161832000,-250.0,0.00014209,2]
[421790479,1778161832000,-171.08153628,0.00014605,2]
[421790481,1778161832000,-500.0,0.00014605,2]
[421790490,1778161832000,-500.0,0.00014605,2]
[421790486,1778161832000,-150.0,0.00014605,2]
[421790485,1778161832000,-608.0,0.00014605,2]
[421790483,1778161832000,-150.0,0.00014605,2]
[421790484,1778161832000,-214.67231335,0.00014605,2]
[421790487,1778161832000,-608.0,0.00014605,2]
[421790480,1778161832000,-500.0,0.00014605,2]
[421790482,1778161832000,-588.53192234,0.00014605,2]
[421790489,1778161832000,-608.0,0.00014605,2]
[421790473,1778161832000,-500.0,0.00014605,2]
[421790492,1778161832000,-150.0,0.00014605,2]
[421790505,1778161832000,-247.96584717,0.00014605,2]
[421790488,1778161832000,-500.0,0.00014605,2]
[421790498,1778161832000,-273.6731824,0.00014605,2]
[421790496,1778161832000,-150.0,0.00014605,2]
[421790500,1778161832000,-468.17760146,0.00014605,2]
[421790494,1778161832000,-608.0,0.00014605,2]
[421790497,1778161832000,-500.0,0.00014605,2]
[421790499,1778161832000,-608.0,0.00014605,2]
[421790501,1778161832000,-608.0,0.00014605,2]
[421790503,1778161832000,-150.0,0.00014605,2]
[421790493,1778161832000,-159.01319722,0.00014605,2]
[421790491,1778161832000,-500.0,0.00014605,2]
[421790502,1778161832000,-608.0,0.00014605,2]
[421790495,1778161832000,-500.0,0.00014605,2]
[421790559,1778161833000,-14417.00405242,0.0001877,2]
[421790568,1778161833000,-500.0,0.00019758,2]
[421790558,1778161833000,-9999.99,0.00018533,2]
[421790557,1778161833000,-299.99,0.00018533,4]
[421790560,1778161833000,-156.21,0.00019258,2]
[421790556,1778161833000,-999.99,0.00018533,2]
[421790565,1778161833000,-500.0,0.00019758,2]
[421790555,1778161833000,-3217.98,0.00018533,2]
[421790571,1778161833000,-500.0,0.00019758,2]
[421790576,1778161833000,-421.0,0.0002,2]
[421790572,1778161833000,-2551.0,0.00019761,2]
[421790569,1778161833000,-500.0,0.00019758,2]
[421790575,1778161833000,-240.55590337,0.0002,2]
[421790573,1778161833000,-200.0,0.00019825,2]
[421790567,1778161833000,-500.0,0.00019758,2]
[421790574,1778161833000,-4000.0,0.0002,2]
[421790577,1778161833000,-483.0,0.0002,2]
[421790580,1778161833000,-2500.0,0.00020206,2]
[421790579,1778161833000,-166.66,0.00020077,2]
[421790570,1778161833000,-500.0,0.00019758,2]
[421790566,1778161833000,-466.10746956,0.00019758,2]
[421790553,1778161833000,-150.99,0.00018533,2]
[421790562,1778161833000,-4000.0,0.00019512,2]
[421790578,1778161833000,-317.0,0.0002,2]
[421790538,1778161833000,-314.0,0.00016216,2]
[421790537,1778161833000,-799.96,0.00016159,2]
[421790539,1778161833000,-808.57683715,0.00016329,2]
[421790540,1778161833000,-1214.60298935,0.00016329,2]
[421790541,1778161833000,-2351.0,0.00016331,2]
[421790546,1778161833000,-217.0,0.00017225,2]
[421790542,1778161833000,-6483.92,0.00016378,2]
[421790544,1778161833000,-2000.0,0.00016469,2]
[421790547,1778161833000,-209.56355865,0.00017356,2]
[421790548,1778161833000,-3292.0,0.00017965,2]
[421790545,1778161833000,-250.0,0.00016871,2]
[421790549,1778161833000,-156.21,0.00017975,2]
[421790550,1778161833000,-153.0,0.00018153,2]
[421790551,1778161833000,-2000.0,0.00018528,2]
[421790552,1778161833000,-325.2,0.00018533,2]
[421790554,1778161833000,-15761.03,0.00018533,2]
[421790564,1778161833000,-500.0,0.00019758,2]
[421790563,1778161833000,-166.66,0.00019672,2]
[421790561,1778161833000,-166.66,0.00019266,2]
[421790543,1778161833000,-200.0,0.00016434,2]
[421790582,1778161833000,-1000.0,0.00020306,2]
[421790585,1778161833000,-503.11139705,0.00020306,2]
[421790607,1778161833000,-2313.94691139,0.0002195,2]
[421790611,1778161833000,-483.0,0.00022,2]
[421790610,1778161833000,-421.0,0.00022,2]
[421790613,1778161833000,-214.63993676,0.00022404,2]
[421790608,1778161833000,-472.40575375,0.00021999,2]
[421790612,1778161833000,-317.0,0.00022,2]
[421790614,1778161833000,-212.18687005,0.00022407,2]
[421790615,1778161833000,-799.96,0.00022623,2]
[421790617,1778161833000,-1000.0,0.00022658,2]
[421790616,1778161833000,-2000.0,0.00022645,2]
[421790625,1778161833000,-1222.0,0.00023716,2]
[421790619,1778161833000,-483.0,0.00023,2]
[421790618,1778161833000,-421.0,0.00023,2]
[421790620,1778161833000,-317.0,0.00023,2]
[421790621,1778161833000,-156.21,0.0002311,2]
[421790624,1778161833000,-279.700248,0.00023561,14]
[421790623,1778161833000,-168.051492,0.00023561,14]
[421790622,1778161833000,-350.74,0.00023311,2]
[421790581,1778161833000,-351.55653234,0.00020306,2]
[421790609,1778161833000,-1941.0,0.00022,3]
[421790602,1778161833000,-1006.48136939,0.00021402,2]
[421790626,1778161833000,-1958.59754736,0.00023716,2]
[421790597,1778161833000,-421.0,0.00021,2]
[421790583,1778161833000,-1000.0,0.00020306,2]
[421790601,1778161833000,-2000.0,0.00021402,2]
[421790590,1778161833000,-350.74,0.00020721,2]
[421790592,1778161833000,-1500.0,0.00020854,2]
[421790588,1778161833000,-156.21,0.00020542,2]
[421790584,1778161833000,-1002.24165791,0.00020306,2]
[421790586,1778161833000,-166.66,0.00020483,2]
[421790591,1778161833000,-1500.0,0.00020854,2]
[421790587,1778161833000,-4000.0,0.00020488,2]
[421790604,1778161833000,-4000.0,0.00021463,2]
[421790589,1778161833000,-2000.0,0.00020586,2]
[421790606,1778161833000,-5000.0,0.00021918,2]
[421790593,1778161833000,-166.66,0.00020889,2]
[421790600,1778161833000,-166.66,0.00021294,2]
[421790605,1778161833000,-156.21,0.00021826,2]
[421790596,1778161833000,-1900.0,0.00021,2]
[421790603,1778161833000,-14417.00405242,0.00021406,2]
[421790599,1778161833000,-317.0,0.00021,2]
[421790598,1778161833000,-483.0,0.00021,2]
[421790595,1778161833000,-4000.0,0.00020975,2]
[421790594,1778161833000,-320.31147582,0.00020966,2]
[421790633,1778161837000,-233.54808641,0.00018769,2]
[421790632,1778161837000,-500.0,0.00018769,2]
[421790635,1778161837000,-500.0,0.00018769,2]
[421790634,1778161837000,-500.0,0.00018769,2]
[421790709,1778161838000,-156.21,0.00026962,2]
[421790666,1778161838000,-176.34,0.00024678,2]
[421790667,1778161838000,-2000.0,0.00024703,2]
[421790665,1778161838000,-184.57,0.00024658,2]
[421790673,1778161838000,-434.0,0.00025,2]
[421790675,1778161838000,-486.0,0.00025,2]
[421790669,1778161838000,-186.79,0.00024946,7]
[421790668,1778161838000,-189.44,0.00024946,7]
[421790677,1778161838000,-329.0,0.00025,2]
[421790681,1778161838000,-1061.6314989,0.00025383,5]
[421790679,1778161838000,-1080.26952768,0.00025383,5]
[421790691,1778161838000,-156.21,0.00025678,2]
[421790707,1778161838000,-417.0,0.00026716,2]
[421790689,1778161838000,-355.58610813,0.00025496,2]
[421790683,1778161838000,-1149.37507846,0.00025383,5]
[421790687,1778161838000,-1122.75079537,0.00025383,5]
[421790693,1778161838000,-150.0,0.0002589,2]
[421790697,1778161838000,-151.0,0.00026296,2]
[421790695,1778161838000,-176.34,0.00026036,2]
[421790699,1778161838000,-500.0,0.00026664,2]
[421790703,1778161838000,-14417.00405242,0.00026677,2]
[421790701,1778161838000,-500.0,0.00026664,2]
[421790705,1778161838000,-6044.0,0.00026716,2]
[421790671,1778161838000,-184.57,0.00024946,7]
[421790685,1778161838000,-1032.22171529,0.00025383,5]
[421790662,1778161838000,-1000.0,0.00024658,2]
[421790640,1778161838000,-500.0,0.00018769,2]
[421790663,1778161838000,-150.0,0.00024658,2]
[421790636,1778161838000,-500.0,0.00018769,2]
[421790637,1778161838000,-500.0,0.00018769,2]
[421790638,1778161838000,-500.0,0.00018769,2]
[421790639,1778161838000,-500.0,0.00018769,2]
[421790642,1778161838000,-500.0,0.00018769,2]
[421790641,1778161838000,-500.0,0.00018769,2]
[421790643,1778161838000,-500.0,0.00018769,2]
[421790644,1778161838000,-500.0,0.00018769,2]
[421790646,1778161838000,-500.0,0.00018769,2]
[421790645,1778161838000,-500.0,0.00018769,2]
[421790647,1778161838000,-514.01884555,0.00018769,2]
[421790649,1778161838000,-500.0,0.00018769,2]
[421790648,1778161838000,-500.0,0.00018769,2]
[421790658,1778161838000,-483.0,0.00024,2]
[421790659,1778161838000,-317.0,0.00024,2]
[421790651,1778161838000,-500.0,0.00018769,2]
[421790654,1778161838000,-4085.40245264,0.00023716,2]
[421790650,1778161838000,-500.0,0.00018769,2]
[421790653,1778161838000,-500.0,0.00018769,2]
[421790655,1778161838000,-417.0,0.00023716,2]
[421790652,1778161838000,-500.0,0.00018769,2]
[421790656,1778161838000,-213.54098388,0.00023962,7]
[421790657,1778161838000,-421.0,0.00024,2]
[421790660,1778161838000,-14417.00405242,0.00024042,2]
[421790661,1778161838000,-156.21,0.00024394,2]
[421790664,1778161838000,-186.79,0.00024658,2]
[421790715,1778161838000,-1000.0,0.00027212,2]
[421790736,1778161838000,-151.0,0.00028267,2]
[421790711,1778161838000,-502.0,0.00027137,2]
[421790776,1778161838000,-155.65,0.00028925,7]
[421790792,1778161838000,-988.93,0.0002898,2]
[421790785,1778161838000,-153.81,0.00028963,30]
[421790789,1778161838000,-155.65,0.00028964,30]
[421790794,1778161838000,-12014.61704422,0.0002899,2]
[421790796,1778161838000,-153.81,0.00029001,2]
[421790810,1778161838000,-155.65,0.00029079,30]
[421790799,1778161838000,-155.65,0.00029002,2]
[421790802,1778161838000,-155.65,0.0002904,7]
[421790813,1778161838000,-155.65,0.00029117,2]
[421790815,1778161838000,-153.81,0.00029117,2]
[421790808,1778161838000,-153.81,0.00029078,30]
[421790817,1778161838000,-153.81,0.00029155,7]
[421790805,1778161838000,-153.81,0.0002904,7]
[421790819,1778161838000,-155.65,0.00029156,7]
[421790822,1778161838000,-155.65,0.00029194,30]
[421790832,1778161838000,-14417.00405242,0.00029313,2]
[421790824,1778161838000,-153.81,0.00029194,30]
[421790835,1778161838000,-6044.0,0.00029716,2]
[421790833,1778161838000,-156.21,0.0002953,2]
[421790826,1778161838000,-155.8,0.00029232,2]
[421790837,1778161838000,-417.0,0.00029716,2]
[421790839,1778161838000,-150.0,0.00029971,2]
[421790831,1778161838000,-502.0,0.00029309,4]
[421790713,1778161838000,-150.0,0.00027185,2]
[421790766,1778161838000,-153.81,0.00028847,30]
[421790774,1778161838000,-153.81,0.00028924,7]
[421790829,1778161838000,-153.88,0.00029232,2]
[421790760,1778161838000,-155.65,0.00028772,2]
[421790764,1778161838000,-155.65,0.0002881,7]
[421790721,1778161838000,-246.25959459,0.00027373,2]
[421790719,1778161838000,-300.0,0.00027254,2]
[421790728,1778161838000,-988.93,0.000274,2]
[421790722,1778161838000,-176.34,0.00027393,2]
[421790724,1778161838000,-1455.11982277,0.00027397,2]
[421790726,1778161838000,-214.63993676,0.000274,10]
[421790732,1778161838000,-502.0,0.00027861,2]
[421790744,1778161838000,-153.81,0.00028655,2]
[421790734,1778161838000,-156.21,0.00028246,2]
[421790730,1778161838000,-1500.0,0.0002776,5]
[421790742,1778161838000,-502.0,0.00028585,3]
[421790717,1778161838000,-502.50768999,0.00027212,2]
[421790738,1778161838000,-983.7392912,0.00028307,5]
[421790772,1778161838000,-155.65,0.00028887,2]
[421790762,1778161838000,-153.81,0.00028809,7]
[421790768,1778161838000,-155.65,0.00028848,30]
[421790746,1778161838000,-155.65,0.00028657,2]
[421790756,1778161838000,-176.34,0.00028751,2]
[421790770,1778161838000,-153.81,0.00028886,2]
[421790754,1778161838000,-155.65,0.00028733,30]
[421790750,1778161838000,-155.65,0.00028695,7]
[421790740,1778161838000,-150.0,0.00028544,2]
[421790752,1778161838000,-153.81,0.00028732,30]
[421790748,1778161838000,-153.81,0.00028693,7]
[421790758,1778161838000,-153.81,0.0002877,2]
[421790903,1778161839000,-305.7043016,0.00032,120]
[421790902,1778161839000,-534.79985629,0.00032,120]
[421790895,1778161839000,-225.79,0.00031781,120]
[421790899,1778161839000,-14417.00405242,0.00031949,2]
[421790884,1778161839000,-154.0,0.00031189,30]
[421790894,1778161839000,-521.60504822,0.00031636,2]
[421790893,1778161839000,-495.10269677,0.000316,2]
[421790891,1778161839000,-495.10269678,0.000316,2]
[421790888,1778161839000,-476.44,0.000313,7]
[421790900,1778161839000,-152.0,0.00031995,7]
[421790901,1778161839000,-3762.97126547,0.00032,120]
[421790910,1778161839000,-483.0,0.00032189,30]
[421790897,1778161839000,-150.0,0.00031834,2]
[421790898,1778161839000,-177.94081992,0.00031949,14]
[421790905,1778161839000,-156.21,0.00032097,2]
[421790911,1778161839000,-154.0,0.00032189,30]
[421790904,1778161839000,-200.0,0.00032055,2]
[421790912,1778161839000,-317.0,0.00032195,30]
[421790906,1778161839000,-162.0,0.00032189,30]
[421790913,1778161839000,-502.0,0.00032206,7]
[421790907,1778161839000,-165.0,0.00032189,30]
[421790886,1778161839000,-317.0,0.00031195,30]
[421790909,1778161839000,-421.0,0.00032189,30]
[421790896,1778161839000,-521.60504822,0.00031814,2]
[421790890,1778161839000,-502.0,0.00031482,6]
[421790870,1778161839000,-225.77,0.00030959,120]
[421790887,1778161839000,-521.60504822,0.00031298,2]
[421790916,1778161839000,-417.0,0.00032716,2]
[421790841,1778161839000,-502.0,0.00030034,5]
[421790852,1778161839000,-151.0,0.00030239,2]
[421790854,1778161839000,-521.60504822,0.00030331,2]
[421790857,1778161839000,-521.60504822,0.00030396,2]
[421790859,1778161839000,-502.0,0.00030758,5]
[421790843,1778161839000,-200.0,0.00030137,2]
[421790861,1778161839000,-5564.07053292,0.00030813,2]
[421790846,1778161839000,-192.26329149,0.00030137,40]
[421790863,1778161839000,-156.21,0.00030813,2]
[421790848,1778161839000,-294.2,0.00030137,2]
[421790850,1778161839000,-225.77,0.00030137,120]
[421790865,1778161839000,-521.60504822,0.00030859,2]
[421790872,1778161839000,-350.74,0.00031081,120]
[421790868,1778161839000,-521.60504822,0.00030913,2]
[421790879,1778161839000,-163.0,0.00031189,30]
[421790881,1778161839000,-152.0,0.00031189,30]
[421790875,1778161839000,-200.0,0.00031096,2]
[421790877,1778161839000,-160.0,0.00031189,30]
[421790883,1778161839000,-483.0,0.00031189,30]
[421790882,1778161839000,-421.0,0.00031189,30]
[421790885,1778161839000,-160.0,0.00031195,30]
[421790889,1778161839000,-150.0,0.0003147,2]
[421790892,1778161839000,-495.10269677,0.000316,2]
[421790914,1778161839000,-151.0,0.0003221,5]
[421790908,1778161839000,-153.0,0.00032189,30]
[421790918,1778161839000,-502.0,0.0003293,8]
[421790944,1778161839000,-1102.42952834,0.000339,120]
[421790947,1778161839000,-298.0,0.000339,120]
[421790943,1778161839000,-3762.97126547,0.000339,120]
[421790949,1778161839000,-150.0,0.00034025,7]
[421790953,1778161839000,-150.0,0.00034039,2]
[421790952,1778161839000,-150.0,0.00034039,2]
[421790948,1778161839000,-152.0,0.00033927,3]
[421790958,1778161839000,-150.0,0.00034133,7]
[421790951,1778161839000,-150.0,0.00034039,2]
[421790955,1778161839000,-150.0,0.00034039,2]
[421790954,1778161839000,-150.0,0.00034039,2]
[421790945,1778161839000,-534.79985629,0.000339,120]
[421790956,1778161839000,-212.0,0.00034039,2]
[421790961,1778161839000,-421.0,0.00034189,30]
[421790960,1778161839000,-151.0,0.00034182,7]
[421790963,1778161839000,-154.0,0.00034189,30]
[421790964,1778161839000,-317.0,0.00034195,30]
[421790966,1778161839000,-150.0,0.00034216,2]
[421790965,1778161839000,-150.0,0.00034216,2]
[421790962,1778161839000,-483.0,0.00034189,30]
[421790968,1778161839000,-150.0,0.00034216,2]
[421790970,1778161839000,-150.0,0.00034216,2]
[421790972,1778161839000,-150.0,0.00034216,2]
[421790915,1778161839000,-6044.0,0.00032716,2]
[421790957,1778161839000,-150.0,0.00034092,7]
[421790946,1778161839000,-278.0,0.000339,120]
[421790950,1778161839000,-150.0,0.00034039,2]
[421790936,1778161839000,-150.0,0.00033559,7]
[421790939,1778161839000,-150.0,0.00033559,7]
[421790921,1778161839000,-17930.6,0.00033,7]
[421790922,1778161839000,-534.79985629,0.00033,120]
[421790917,1778161839000,-150.0,0.00032834,2]
[421790920,1778161839000,-3762.97126547,0.00033,120]
[421790919,1778161839000,-988.93,0.0003299,2]
[421790925,1778161839000,-150.0,0.00033043,2]
[421790932,1778161839000,-150.0,0.00033559,7]
[421790931,1778161839000,-156.21,0.00033381,2]
[421790924,1778161839000,-587.07,0.00033014,2]
[421790923,1778161839000,-214.63993676,0.00033,7]
[421790926,1778161839000,-5564.07053292,0.00033084,2]
[421790927,1778161839000,-421.0,0.00033189,30]
[421790934,1778161839000,-150.0,0.00033559,7]
[421790929,1778161839000,-154.0,0.00033189,30]
[421790933,1778161839000,-150.0,0.00033559,7]
[421790928,1778161839000,-483.0,0.00033189,30]
[421790930,1778161839000,-317.0,0.00033195,30]
[421790937,1778161839000,-150.0,0.00033559,7]
[421790935,1778161839000,-151.87006581,0.00033559,7]
[421790938,1778161839000,-150.0,0.00033559,7]